bitfinex/quotes_ETHUSD_20251125
["timestamp","ask_amount","ask_price","bid_price","bid_amount"]
[1764080280277,6.3816591,2918.3,2918.2,0.001]
[1764080280758,1.13100849,2918.3,2918.2,0.001]
[1764080281064,5.25336099,2918.3,2918.2,0.001]
[1764080281264,5.65886499,2918.3,2918.2,0.001]
[1764080281468,1.26590849,2918.3,2918.2,0.001]
[1764080281633,4.69256099,2918.3,2918.2,0.001]
[1764080281963,0.3171488,2918.3,2918.2,0.9395]
[1764080282168,0.5361488,2918.3,2918.2,0.9395]
[1764080282464,0.9875488,2918.3,2918.2,0.001]
[1764080282764,0.5361488,2918.3,2918.2,0.001]
[1764080284176,0.9841488,2918.3,2918.2,0.001]
[1764080284678,6.38384573,2918.3,2918.2,0.001]
[1764080285062,6.42667888,2918.3,2918.2,0.001]
[1764080285394,7.33673236,2918.3,2918.2,0.001]
[1764080285574,7.29389921,2918.3,2918.2,0.001]
[1764080286491,41.89148119,2918.3,2918.2,0.001]
[1764080286946,20.25580711,2918.2,2918.1,0.001]
[1764080287148,26.81274607,2918.2,2917.6,0.001]
[1764080287370,1.13109811,2917.8,2917.6,0.001]
[1764080287581,20.84768965,2917.7,2917.6,0.001]
[1764080287771,21.29034769,2917.7,2917.6,0.001]
[1764080288280,1.13109811,2917.4,2916.2,0.1838]
[1764080288599,0.405504,2917.2,2916.2,3.61291669]
[1764080288889,0.405504,2917.0,2915.9,0.6651]
[1764080289049,0.405504,2916.6,2915.9,0.6651]
[1764080289253,0.405504,2916.4,2915.9,0.6651]
[1764080289672,0.405504,2916.4,2915.9,0.1886]
[1764080289877,0.405504,2916.4,2916.0,0.4765]
[1764080290475,0.1922,2916.9,2916.3,0.462]
[1764080290699,3.85923922,2918.0,2916.1,0.1838]
[1764080290700,0.624504,2916.8,2916.4,0.462]
[1764080291004,0.219,2916.7,2916.4,0.9385]
[1764080291162,0.219,2916.7,2916.5,3.42876735]
[1764080291366,0.219,2916.7,2916.6,0.462]
[1764080291577,0.219,2916.7,2916.6,0.9385]
[1764080291776,0.405504,2917.0,2916.6,0.9385]
[1764080291978,0.219,2916.9,2916.7,0.4765]
[1764080292293,0.219,2916.9,2916.5,3.42876735]
[1764080292493,0.624504,2916.9,2916.8,0.462]
[1764080292919,0.624504,2916.9,2916.4,3.9053462]
[1764080293073,0.624504,2916.9,2916.4,3.42887573]
[1764080293273,0.624504,2916.9,2916.5,0.4765]
[1764080295099,0.72559411,2917.6,2916.8,0.462]
[1764080295304,0.405504,2917.3,2917.0,0.462]
[1764080297005,0.6777,2917.7,2917.0,0.9385]
[1764080297310,0.31498597,2917.6,2917.2,0.462]
[1764080297481,3.42715982,2917.9,2917.5,0.462]
[1764080297799,0.1922,2918.2,2917.5,0.462]
[1764080298005,0.219,2918.1,2917.5,0.9385]
[1764080298222,0.3150382,2918.0,2917.5,0.9385]
[1764080298523,0.219,2917.9,2917.6,0.4765]
[1764080298720,0.0718,2917.6,2917.1,3.61186211]
[1764080298920,0.219,2917.5,2917.1,3.42806211]
[1764080299528,0.405504,2917.9,2917.4,0.462]
[1764080299694,0.219,2917.8,2917.6,0.462]
[1764080300021,0.4514,2917.7,2917.1,3.61186211]
[1764080301209,0.04284343,2917.6,2917.1,3.61186211]
[1764080301406,0.405504,2917.5,2917.1,0.1838]
[1764080301623,0.405504,2917.5,2916.5,4.51559411]
[1764080301624,0.26184637,2917.4,2916.5,7.94429897]
[1764080301819,0.26184637,2917.4,2916.8,0.4587]
[1764080303351,0.26184637,2917.4,2916.9,6.85659432]
[1764080303513,0.26184637,2917.4,2916.9,3.42829716]
[1764080303714,0.26184637,2917.4,2916.9,3.88699716]
[1764080304248,0.26104637,2917.4,2916.9,3.88699716]
[1764080304947,0.624504,2917.3,2917.0,0.4587]
[1764080305334,0.624504,2917.3,2916.8,3.4284147]
[1764080305668,3.83336673,2917.3,2916.8,3.4284147]
[1764080305950,0.219,2917.2,2916.8,3.4284147]
[1764080306151,0.219,2917.2,2916.7,3.86665265]
[1764080307117,0.219,2917.2,2916.8,0.001]
[1764080307646,0.405504,2917.5,2917.1,0.6716]
[1764080307848,0.219,2917.4,2917.1,0.1882]
[1764080308154,0.002,2917.6,2917.5,0.4834]
[1764080308446,0.221,2917.6,2917.5,0.4834]
[1764080308651,0.221,2917.6,2917.5,0.9421]
[1764080309661,0.221,2917.6,2917.2,3.4279446]
[1764080309854,0.221,2917.6,2917.5,0.4834]
[1764080309855,0.002,2917.6,2917.5,0.4834]
[1764080310048,3.6485513,2917.6,2917.1,0.1882]
[1764080310229,0.0428449,2917.5,2917.0,3.42807976]
[1764080310858,0.0428449,2917.5,2916.9,3.42829626]
[1764080311059,0.3592386,2917.5,2916.9,6.85659342]
[1764080311436,0.3592386,2917.5,2916.9,3.42829626]
[1764080311653,3.78688543,2917.5,2916.9,3.42829626]
[1764080311844,0.0428449,2917.5,2916.9,6.85659342]
[1764080312066,0.31643855,2917.5,2917.4,0.6716]
[1764080312267,0.219,2917.5,2917.0,0.4587]
[1764080312487,0.35929586,2917.4,2916.8,3.42940164]
[1764080312660,0.405504,2917.3,2916.8,0.001]
[1764080312858,0.002,2917.6,2917.3,0.4834]
[1764080313061,0.002,2917.6,2917.5,0.4834]
[1764080313356,0.221,2917.6,2917.5,0.4834]
[1764080313552,0.53740397,2917.6,2917.5,0.4834]
[1764080313935,0.221,2917.6,2917.5,4.36969211]
[1764080314266,0.002,2917.6,2917.5,4.36969211]
[1764080314447,0.221,2917.6,2917.5,4.36969211]
[1764080314651,0.002,2917.6,2917.5,4.36969211]
[1764080315063,0.002,2917.6,2916.8,3.791]
[1764080315064,0.3023,2917.6,2916.8,0.001]
[1764080315235,0.72559411,2917.1,2916.8,0.001]
[1764080315434,1.21649811,2916.9,2916.8,0.001]
[1764080315651,7.33151866,2916.9,2916.8,0.001]
[1764080315836,7.81981866,2916.9,2916.8,0.001]
[1764080316173,16.19212166,2916.9,2916.8,0.001]
[1764080316374,27.45691366,2916.9,2916.8,0.001]
[1764080316554,28.67031831,2916.9,2916.8,0.001]
[1764080317262,24.99287953,2916.9,2916.8,0.001]
[1764080317458,19.75462453,2916.9,2916.8,0.001]
[1764080317770,17.77535353,2916.9,2916.8,0.001]
[1764080318092,15.30884839,2916.9,2916.8,0.001]
[1764080320184,36.39836553,2916.9,2916.8,0.001]
[1764080320373,12.78319553,2916.9,2916.8,0.001]
[1764080321248,22.03041918,2916.9,2916.8,0.001]
[1764080321483,20.81701453,2916.9,2916.8,0.001]
[1764080321872,1.13109811,2916.8,2916.5,0.001]
[1764080322066,13.28486998,2916.6,2916.5,0.001]
[1764080322266,19.27411325,2916.6,2916.5,0.001]
[1764080322463,19.77061325,2916.6,2916.5,0.001]
[1764080323189,16.00562382,2916.6,2916.5,0.001]
[1764080323379,18.72768082,2916.6,2916.5,0.001]
[1764080323753,22.15633061,2916.6,2916.5,0.001]
[1764080324274,36.74759161,2916.6,2916.5,0.001]
[1764080324452,35.83935717,2916.6,2916.5,0.001]
[1764080324856,0.405504,2916.4,2915.6,0.001]
[1764080325105,0.666704,2915.7,2915.6,0.001]
[1764080325256,1.20138642,2915.7,2915.6,0.001]
[1764080325602,1.69788642,2915.7,2915.6,0.001]
[1764080325971,5.85318866,2915.7,2915.6,0.001]
[1764080326969,5.09548866,2915.7,2915.6,0.4844]
[1764080328392,5.09468866,2915.7,2915.6,0.4844]
[1764080329070,4.77900624,2915.7,2915.6,0.001]
[1764080330289,4.56000624,2915.7,2915.6,0.4844]
[1764080330490,0.219,2915.7,2915.6,0.9391]
[1764080332094,4.05421213,2915.7,2915.6,0.4844]
[1764080332299,4.55418348,2915.7,2915.6,0.001]
[1764080332489,4.05421213,2915.7,2915.6,0.001]
[1764080332863,4.05421213,2915.7,2915.6,0.4648]
[1764080333597,0.405504,2915.7,2915.6,0.4648]
[1764080333768,4.05421213,2915.7,2915.6,0.9195]
[1764080335289,4.05421213,2915.7,2915.6,0.4648]
[1764080335489,4.05421213,2915.7,2915.6,0.001]
[1764080335869,0.624504,2915.7,2915.6,0.9195]
[1764080336073,0.405504,2915.9,2915.6,0.9195]
[1764080336276,0.219,2915.7,2915.6,0.001]
[1764080336676,0.219,2915.7,2915.6,0.4648]
[1764080337070,0.219,2915.7,2915.6,0.9195]
[1764080337600,0.405504,2916.1,2915.6,0.9195]
[1764080337897,0.405504,2915.9,2915.7,0.4547]
[1764080338403,3.83506473,2915.9,2915.8,0.4638]
[1764080338600,3.83506473,2915.9,2915.6,0.001]
[1764080338788,0.04286988,2915.8,2915.6,0.001]
[1764080339101,0.04286988,2915.8,2915.6,0.4933]
[1764080339303,0.405504,2915.8,2915.7,0.4779]
[1764080339672,0.44837388,2915.8,2915.7,0.4779]
[1764080340069,0.44837388,2915.8,2915.6,0.001]
[1764080340070,0.405504,2915.7,2915.6,0.001]
[1764080340278,4.32051213,2915.7,2915.6,0.001]
[1764080340499,5.30510624,2915.7,2915.6,0.001]
[1764080340669,5.66290512,2915.7,2915.6,0.001]
[1764080340875,11.57527948,2915.7,2915.6,0.001]
[1764080341071,0.890804,2915.5,2915.3,0.001]
[1764080341294,18.2215414,2915.4,2915.3,0.001]
[1764080341497,8.73459024,2915.4,2915.3,0.001]
[1764080341683,6.09295924,2915.4,2915.3,0.001]
[1764080341882,2.64507124,2915.4,2915.3,0.001]
[1764080342090,2.39317124,2915.4,2915.3,0.001]
[1764080342292,5.82323229,2915.4,2915.3,0.001]
[1764080342799,6.29413229,2915.4,2915.3,0.001]
[1764080344012,21.99320908,2915.4,2915.3,0.001]
[1764080344217,21.99320908,2915.4,2915.0,0.001]
[1764080344218,1.13109811,2915.3,2915.0,0.001]
[1764080344379,1.13109811,2915.3,2913.4,0.6805]
[1764080344380,1.13109811,2914.6,2913.4,0.6805]
[1764080344721,0.405504,2914.4,2913.4,0.6805]
[1764080344879,0.405504,2914.2,2913.6,0.4923]
[1764080345077,0.405504,2914.0,2913.6,0.4923]
[1764080345276,0.405504,2914.0,2913.9,0.4779]
[1764080345515,0.219,2914.0,2913.9,0.4779]
[1764080345876,0.405504,2913.9,2913.4,0.1882]
[1764080346094,0.586404,2913.9,2913.4,0.1882]
[1764080346297,0.405504,2913.7,2913.4,0.1882]
[1764080346478,0.624504,2913.6,2913.4,0.1882]
[1764080346677,0.93965767,2913.6,2913.2,0.001]
[1764080346910,0.93965767,2913.6,2913.5,0.4789]
[1764080346911,0.72065767,2913.6,2913.5,0.4789]
[1764080347132,0.624504,2913.6,2913.5,0.9712]
[1764080347692,0.624504,2913.6,2913.5,0.4789]
[1764080348110,0.405504,2913.6,2913.5,0.4789]
[1764080348311,0.624504,2913.6,2913.5,0.4789]
[1764080348512,0.624504,2913.6,2913.5,0.9712]
[1764080348733,4.05668412,2913.6,2913.5,0.9712]
[1764080349102,4.05668412,2913.6,2913.5,0.4789]
[1764080349810,4.05668412,2913.6,2913.5,0.001]
[1764080352201,0.404704,2913.6,2913.5,0.9712]
[1764080352401,0.219,2913.6,2913.5,0.9712]
[1764080352602,0.72559411,2914.2,2913.5,0.9712]
[1764080352804,0.72559411,2914.0,2913.6,0.4923]
[1764080353025,0.72559411,2914.0,2913.5,0.4789]
[1764080353026,0.3347,2913.7,2913.5,0.001]
[1764080353308,0.219,2913.6,2913.5,0.001]
[1764080353916,0.0765,2913.9,2913.5,0.001]
[1764080354113,0.219,2913.6,2913.5,0.001]
[1764080354732,4.05668412,2913.6,2913.5,0.4789]
[1764080355541,0.405504,2914.1,2913.5,0.9712]
[1764080355744,0.31441832,2914.0,2913.6,0.4779]
[1764080355955,7.58710909,2914.3,2913.6,0.9702]
[1764080355956,0.72439765,2914.2,2913.6,0.9702]
[1764080356248,3.43090544,2914.7,2914.2,0.6734]
[1764080356549,0.31444574,2914.6,2914.4,0.4779]
[1764080356806,6.86035742,2915.3,2914.6,0.4779]
[1764080356984,0.405504,2915.1,2914.7,0.4779]
[1764080357154,0.405504,2914.9,2914.2,0.1955]
[1764080357317,0.94459411,2915.2,2914.0,0.4923]
[1764080357318,0.53365984,2914.8,2914.0,0.4923]
[1764080357518,0.405504,2914.6,2914.0,0.4923]
[1764080357714,0.405504,2914.4,2913.7,0.4923]
[1764080357949,0.04289194,2914.3,2913.7,0.4923]
[1764080358319,0.405504,2914.6,2914.2,0.6734]
[1764080358633,0.405504,2914.4,2914.2,0.6734]
[1764080358833,3.83680018,2914.4,2914.2,0.6734]
[1764080359152,3.43107226,2914.6,2914.2,0.6734]
[1764080359153,0.405504,2914.6,2914.3,0.9702]
[1764080359349,0.624504,2914.5,2914.4,0.4923]
[1764080359738,0.624504,2914.5,2914.4,0.9702]
[1764080360115,0.405504,2914.7,2914.4,0.9702]
[1764080360449,0.219,2914.6,2914.4,0.9702]
[1764080360826,3.43076997,2914.8,2914.5,0.4768]
[1764080361151,0.624504,2914.7,2914.6,0.4768]
[1764080361350,0.624504,2914.7,2914.2,0.6882]
[1764080361727,0.624504,2914.7,2914.2,0.1955]
[1764080361728,0.04288753,2914.6,2914.2,0.1955]
[1764080361927,0.405504,2914.7,2914.2,0.6882]
[1764080362141,0.219,2914.6,2914.2,0.6882]
[1764080362329,0.219,2914.6,2914.3,0.4927]
[1764080362660,0.405504,2914.7,2914.5,0.4768]
[1764080362860,0.219,2914.6,2914.5,0.4768]
[1764080363426,0.405504,2914.5,2913.9,0.4927]
[1764080363627,0.405504,2914.3,2913.6,0.4927]
[1764080363946,0.26189341,2914.2,2913.6,0.4927]
[1764080364134,0.219,2914.2,2913.6,0.4927]
[1764080365262,3.65050732,2914.2,2913.6,3.92476447]
[1764080365558,0.219,2914.2,2913.6,7.35694459]
[1764080365726,3.65050397,2914.2,2913.7,0.4927]
[1764080366926,0.405504,2914.2,2914.1,0.4768]
[1764080367132,0.94002439,2914.2,2914.1,0.4768]
[1764080367729,4.37149786,2914.2,2914.1,0.4768]
[1764080369362,5.10031812,2914.2,2913.9,0.4927]
[1764080369536,0.31552039,2914.1,2913.9,0.4927]
[1764080370071,0.35841528,2914.1,2913.6,3.92487394]
[1764080370241,0.31552039,2914.0,2913.5,0.001]
[1764080370434,0.405504,2913.9,2913.5,0.001]
[1764080370766,0.53535738,2913.8,2913.5,7.3788508]
[1764080370963,0.405504,2914.2,2913.5,7.35827616]
[1764080371136,0.53541453,2914.1,2913.7,3.90879239]
[1764080371466,3.43123799,2914.4,2914.1,0.672]
[1764080371467,0.405504,2914.4,2914.1,0.672]
[1764080371671,0.31644349,2914.3,2914.1,0.1952]
[1764080371831,0.72910482,2914.7,2914.6,0.4768]
[1764080372037,2.39567245,2914.7,2914.6,0.4768]
[1764080372651,2.17667245,2914.7,2914.6,0.4768]
[1764080372971,1.67007834,2914.7,2914.6,0.4768]
[1764080373570,5.10096316,2914.7,2914.3,0.4927]
[1764080373868,0.31646952,2914.6,2914.3,0.4927]
[1764080374065,4.05539866,2914.7,2914.1,3.62673514]
[1764080374066,0.31646952,2914.5,2914.1,3.62673514]
[1764080374268,3.83639866,2914.7,2914.6,0.4768]
[1764080374566,5.10172694,2914.7,2914.6,0.4768]
[1764080374779,5.10172694,2914.7,2914.2,0.4927]
[1764080375075,0.31669509,2914.6,2914.2,0.4927]
[1764080375568,0.31669509,2914.6,2914.5,0.4768]
[1764080376071,3.74771908,2914.6,2914.2,0.4927]
[1764080376243,3.43102399,2914.6,2914.2,0.4927]
[1764080376438,4.05539974,2914.7,2914.5,0.4768]
[1764080376678,4.05539974,2914.7,2914.3,0.4927]
[1764080376679,0.624504,2914.7,2914.6,0.4768]
[1764080377303,4.05538882,2914.7,2914.6,0.4768]
[1764080377664,4.05538882,2914.7,2914.3,0.4927]
[1764080377866,0.04288753,2914.6,2914.3,0.4927]
[1764080378206,0.04288753,2914.6,2914.1,0.1952]
[1764080378207,0.405504,2914.5,2914.1,0.1952]
[1764080378407,0.50799047,2914.4,2913.9,0.4927]
[1764080378707,0.219,2914.3,2913.9,7.35632317]
[1764080379007,0.219,2914.3,2913.9,3.92449641]
[1764080379306,0.219,2914.3,2914.2,0.672]
[1764080379504,0.219,2914.3,2914.2,1.1647]
[1764080380398,0.219,2914.3,2914.2,0.672]
[1764080380598,3.65035572,2914.3,2913.9,0.4927]
[1764080380998,3.43135572,2914.3,2913.9,0.4927]
[1764080381205,0.219,2914.2,2913.9,3.92451891]
[1764080381708,0.219,2914.2,2914.1,0.4768]
[1764080382571,3.47419121,2914.4,2914.1,0.4768]
[1764080382770,0.219,2914.3,2914.1,0.4768]
[1764080383609,0.219,2914.3,2914.2,0.4768]
[1764080383902,0.13080165,2914.3,2914.2,0.4768]
[1764080384413,0.002,2914.7,2914.2,0.4768]
[1764080384584,0.73260912,2914.7,2914.2,0.4927]
[1764080384794,0.002,2914.7,2914.6,0.4768]
[1764080384994,0.221,2914.7,2914.6,0.4768]
[1764080385188,0.221,2914.7,2914.6,0.9695]
[1764080385921,0.002,2914.7,2914.6,0.9695]
[1764080386288,0.221,2914.7,2914.6,4.40050253]
[1764080387309,0.002,2914.7,2914.6,4.40050253]
[1764080387699,0.002,2914.7,2914.6,5.12609664]
[1764080389777,0.002,2915.0,2914.6,11.9881017]
[1764080390011,0.002,2915.0,2914.9,0.4768]
[1764080390513,0.002,2915.0,2914.9,4.36724942]
[1764080395928,0.243,2915.0,2914.7,3.79]
[1764080396102,0.002,2915.0,2914.7,3.79]
[1764080396997,0.002,2915.0,2914.7,7.2208529]
[1764080397435,0.002,2915.0,2914.7,7.22087661]
[1764080397591,0.002,2915.0,2914.7,3.79]
[1764080397791,0.002,2915.0,2914.9,0.4828]
[1764080398312,0.221,2915.0,2914.9,0.9426]
[1764080399248,0.221,2915.0,2914.9,4.37324942]
[1764080400112,0.2202,2915.0,2914.9,4.37324942]
[1764080401144,0.0012,2915.0,2914.9,4.37324942]
[1764080401347,0.0012,2915.0,2914.9,5.11938032]
[1764080401644,0.002,2915.3,2915.0,0.72559411]
[1764080401815,0.002,2915.3,2915.2,1.38479411]
[1764080402302,0.002,2915.3,2915.2,1.1389]
[1764080403101,0.002,2915.3,2915.2,5.29479048]
[1764080403807,0.002,2915.3,2915.2,5.62867844]
[1764080404244,0.002,2915.6,2915.2,1.1389]
[1764080404439,0.002,2915.6,2915.5,0.4599]
[1764080404804,0.2819,2915.6,2915.0,3.43053173]
[1764080405028,0.0045,2915.4,2915.0,6.86106346]
[1764080405507,0.0045,2915.4,2915.0,3.43053173]
[1764080405837,0.0045,2915.4,2914.7,3.43081771]
[1764080406043,0.0045,2915.4,2914.8,6.86153422]
[1764080406245,0.0045,2915.4,2914.8,3.43076711]
[1764080406416,0.4552,2915.4,2914.7,3.43085496]
[1764080407760,3.88529339,2915.4,2914.6,3.43200253]
[1764080407976,0.002,2915.6,2915.3,0.4599]
[1764080408481,0.219,2915.5,2915.3,0.9396]
[1764080408978,0.002,2915.6,2915.3,0.4599]
[1764080409275,0.219,2915.5,2915.3,0.4599]
[1764080409658,0.002,2915.6,2915.0,0.4797]
[1764080409877,0.219,2915.5,2915.0,7.34071647]
[1764080410382,0.219,2915.5,2915.0,3.43048474]
[1764080410533,0.2799,2915.1,2914.8,3.43073268]
[1764080411235,0.4507,2915.4,2914.8,6.86149979]
[1764080411440,0.002,2915.6,2914.9,0.4797]
[1764080411441,0.219,2915.3,2914.9,0.4797]
[1764080411641,0.219,2915.3,2915.0,6.86106346]
[1764080412037,0.219,2915.3,2914.9,3.91029163]
[1764080412239,0.2799,2915.0,2914.9,3.43059163]
[1764080413377,0.219,2915.2,2914.9,7.80084105]
[1764080413680,0.219,2915.2,2915.0,0.4797]
[1764080413978,0.219,2915.2,2915.1,4.08961405]
[1764080414438,0.002,2915.6,2915.1,7.5200281]
[1764080414650,0.6697,2915.5,2915.1,3.43041405]
[1764080414853,0.2799,2915.2,2914.7,3.43088482]
[1764080415051,0.0028,2915.1,2914.7,6.86176964]
[1764080415704,0.4696,2914.8,2914.6,0.001]
[1764080415867,0.2216,2914.7,2914.6,0.001]
[1764080416586,0.6723,2914.7,2914.6,0.001]
[1764080418377,0.219,2914.8,2914.6,0.9406]
[1764080418692,0.219,2914.8,2914.7,0.9396]
[1764080418896,0.219,2914.8,2914.7,0.4599]
[1764080420107,0.72759411,2915.5,2914.8,6.86153422]
[1764080420279,0.53639705,2915.4,2914.8,6.86153422]
[1764080420481,0.31739705,2915.3,2914.8,6.86153422]
[1764080420691,0.31739705,2915.3,2914.8,6.25321947]
[1764080421395,0.31739705,2915.3,2914.8,2.82245236]
[1764080421598,0.31739705,2915.3,2914.8,6.72271947]
[1764080421791,0.219,2915.2,2914.8,6.72271947]
[1764080421999,0.002,2915.5,2915.0,6.86106346]
[1764080422205,0.219,2915.4,2915.1,0.4554]
[1764080422578,0.219,2915.3,2915.1,1.1082]
[1764080423074,0.219,2915.3,2915.1,0.4554]
[1764080423274,0.219,2915.3,2914.9,6.86125026]
[1764080423804,0.7037,2915.3,2914.9,3.43060084]
[1764080424012,0.2463,2915.0,2914.6,3.43200093]
[1764080424587,0.2455,2915.0,2914.6,6.86300346]
[1764080424994,0.2455,2915.0,2914.6,3.43200093]
[1764080425197,0.7278,2915.0,2914.6,0.001]
[1764080425990,0.2455,2915.0,2914.6,0.001]
[1764080427791,0.7278,2915.0,2914.6,0.001]
[1764080428780,0.0048,2914.7,2914.6,0.001]
[1764080428976,0.2238,2914.7,2914.6,0.001]
[1764080429280,1.114004,2914.7,2914.6,0.001]
[1764080429617,1.43180575,2914.7,2914.6,0.001]
[1764080430398,4.86269057,2914.7,2914.6,0.001]
[1764080431326,5.59475596,2914.7,2914.6,0.001]
[1764080433109,6.32035007,2914.7,2914.6,0.001]
[1764080433728,7.22838823,2914.7,2914.6,0.001]
[1764080434201,6.32035007,2914.7,2914.6,0.001]
[1764080434401,1.04986714,2914.7,2914.6,0.001]
[1764080434644,1.8184185,2915.4,2914.6,0.001]
[1764080434645,0.002,2915.4,2914.6,0.9259]
[1764080434852,1.05256632,2915.4,2914.9,0.4554]
[1764080435002,0.53693999,2915.3,2914.9,0.4554]
[1764080435202,0.219,2915.3,2915.0,0.4695]
[1764080435399,0.219,2915.3,2914.9,0.4554]
[1764080435832,0.219,2915.3,2914.6,0.4705]
[1764080436008,0.36095614,2915.2,2914.6,0.001]
[1764080436321,6.8621364,2915.4,2914.6,0.4705]
[1764080436322,0.407504,2915.4,2914.6,0.4705]
[1764080436502,0.53710766,2915.3,2914.7,3.43088482]
[1764080436702,0.219,2915.3,2914.7,3.43088482]
[1764080437237,0.31815039,2915.2,2914.7,3.43088482]
[1764080437809,0.31815039,2915.2,2914.8,0.4695]
[1764080438215,0.31815039,2915.2,2914.7,3.43088482]
[1764080438620,0.31815039,2915.2,2914.8,0.4695]
[1764080438817,0.31815039,2915.2,2914.6,0.001]
[1764080439045,0.219,2915.1,2914.6,0.001]
[1764080439253,0.219,2915.1,2914.6,0.4705]
[1764080439419,0.7037,2915.1,2914.6,0.001]
[1764080440753,3.43209796,2915.4,2914.6,0.001]
[1764080440986,1.27080067,2915.3,2914.6,0.001]
[1764080441107,0.2456,2914.7,2914.6,0.001]
[1764080441308,1.18844926,2914.7,2914.6,0.001]
[1764080441513,1.67074926,2914.7,2914.6,0.001]
[1764080441712,2.40422916,2914.7,2914.6,0.001]
[1764080441935,3.12982327,2914.7,2914.6,0.001]
[1764080442143,9.33766043,2914.7,2914.6,0.001]
[1764080442360,8.75890143,2914.7,2914.6,0.001]
[1764080442547,12.18978625,2914.7,2914.6,0.001]
[1764080443135,11.28174809,2914.7,2914.6,0.001]
[1764080443373,12.05563811,2914.5,2914.1,0.001]
[1764080443572,6.03344411,2914.2,2914.1,0.001]
[1764080443779,7.30426927,2914.2,2914.1,0.001]
[1764080443988,7.78896927,2914.2,2914.1,0.001]
[1764080444152,12.07618292,2914.2,2914.1,0.001]
[1764080444352,12.07618292,2914.2,2913.0,0.001]
[1764080444353,9.43155,2913.7,2913.0,0.001]
[1764080444550,17.11301539,2913.6,2913.0,0.001]
[1764080444874,17.46290581,2913.6,2913.0,0.001]
[1764080445170,12.43343931,2913.6,2913.0,0.001]
[1764080445752,25.56729822,2913.6,2913.0,0.001]
[1764080446673,24.65314531,2913.6,2913.0,0.001]
[1764080446977,1.13109811,2913.4,2913.0,0.001]
[1764080447145,16.11928616,2913.3,2913.0,0.001]
[1764080447346,16.60398616,2913.3,2913.0,0.001]
[1764080447788,2.76892327,2913.3,2913.0,0.001]
[1764080447986,18.342512,2913.1,2913.0,0.001]
[1764080448281,20.92724669,2913.1,2913.0,0.001]
[1764080448445,21.41194669,2913.1,2913.0,0.001]
[1764080448647,0.72559411,2912.7,2911.3,0.1833]
[1764080448844,0.72559411,2912.4,2911.3,0.1833]
[1764080449059,1.06854526,2912.6,2911.3,0.1833]
[1764080449060,0.80131895,2912.3,2911.3,0.1833]
[1764080449254,0.219,2912.2,2911.3,0.1833]
[1764080449550,0.219,2912.1,2911.3,0.1833]
[1764080450092,0.7015,2912.1,2911.3,0.1833]
[1764080450283,7.0632098,2912.9,2912.0,0.4892]
[1764080450451,0.1972,2912.9,2912.0,0.4892]
[1764080450778,0.219,2912.8,2912.2,3.43383009]
[1764080451078,6.86501099,2913.4,2912.7,0.4892]
[1764080451256,0.405504,2913.2,2912.3,0.4655]
[1764080451572,0.7015,2913.3,2912.1,0.189]
[1764080451573,0.405504,2912.7,2912.1,0.189]
[1764080451778,0.219,2912.6,2912.1,0.189]
[1764080451979,0.405504,2912.5,2912.1,0.189]
[1764080452879,0.405504,2912.5,2912.1,0.6545]
[1764080453075,0.1972,2912.8,2912.1,4.08840264]
[1764080453276,0.405504,2912.6,2912.4,0.4902]
[1764080453483,6.8657741,2913.0,2912.4,0.4902]
[1764080453683,0.405504,2912.8,2912.5,0.4892]
[1764080454079,6.8657741,2913.0,2912.5,0.9547]
[1764080454080,0.72559411,2913.0,2912.5,0.9547]
[1764080454285,0.219,2912.9,2912.7,0.4892]
[1764080454656,0.219,2912.9,2912.8,0.4892]
[1764080455865,0.4825,2913.7,2912.8,0.9547]
[1764080455866,0.1968,2913.6,2912.8,0.9547]
[1764080456066,6.86341798,2914.0,2913.0,0.4892]
[1764080456266,1.06032144,2913.9,2913.0,0.4892]
[1764080456469,0.31593531,2913.8,2912.5,0.4655]
[1764080456687,0.405504,2913.7,2912.5,0.4655]
[1764080456892,0.405504,2913.5,2912.6,3.43335851]
[1764080457187,0.219,2913.4,2912.6,6.86671702]
[1764080457368,0.219,2913.3,2912.7,0.4655]
[1764080457886,0.26190814,2913.2,2912.5,3.88786798]
[1764080458082,0.26190814,2913.2,2912.6,0.4544]
[1764080459158,3.69460832,2913.2,2912.6,0.4544]
[1764080459485,3.43170899,2914.0,2913.1,0.686]
[1764080459663,0.405504,2913.7,2912.6,0.4544]
[1764080459863,1.20059411,2913.9,2912.6,7.32111511]
[1764080460064,0.53513026,2913.8,2912.6,7.32111511]
[1764080460391,0.44840477,2913.7,2912.7,0.4544]
[1764080461301,3.43218012,2913.6,2912.8,3.43312276]
[1764080461461,0.405504,2913.4,2912.7,0.4544]
[1764080461664,0.26190666,2913.3,2912.7,0.4544]
[1764080461992,0.219,2913.3,2912.7,0.4544]
[1764080462298,0.219,2913.3,2912.7,3.88762272]
[1764080462794,0.219,2913.3,2912.8,0.4544]
[1764080463292,3.43265137,2913.2,2912.8,0.4544]
[1764080463520,3.65157404,2913.3,2912.8,0.4544]
[1764080463703,0.219,2913.3,2912.8,3.88751422]
[1764080463898,3.65154396,2913.3,2912.9,0.4544]
[1764080464393,0.04290814,2913.2,2912.6,0.4544]
[1764080464594,7.08408792,2913.3,2912.6,3.88775843]
[1764080464796,3.65154396,2913.3,2912.6,7.32111694]
[1764080464989,3.65154396,2913.3,2912.6,3.88775843]
[1764080465182,7.08408792,2913.3,2912.6,3.88775843]
[1764080465496,0.04290814,2913.2,2912.6,0.4544]
[1764080465882,0.04290814,2913.2,2912.6,3.88773586]
[1764080466200,0.76850225,2913.2,2912.6,0.4544]
[1764080466695,0.72559411,2913.2,2912.6,0.4544]